[Event "Betsys MČR v online bleskovém šachu 2021"]
[Site "Chess.com"]
[Date "2021.04.17"]
[Round "4"]
[White "TomSedmihradsky"]
[Black "Petr_Zacek"]
[Result "1-0"]
[WhiteElo "1475"]
[BlackElo "1765"]
[TimeControl "180+1"]
[EndTime "9:37:41 PDT"]
[Termination "Uživatel TomSedmihradsky zvítězil na čas"]

1. d4 {[%clk 0:03:00.1]} 1... d5 {[%clk 0:02:58.6]} 2. c4 {[%clk 0:02:59.7]}
2... e6 {[%clk 0:02:58]} 3. Nc3 {[%clk 0:02:59.7]} 3... Nf6 {[%clk 0:02:57.9]}
4. Bg5 {[%clk 0:02:59.2]} 4... Nbd7 {[%clk 0:02:57.7]} 5. Nf3 {[%clk 0:02:56.8]}
5... c6 {[%clk 0:02:57.5]} 6. e3 {[%clk 0:02:55.6]} 6... Qa5 {[%clk 0:02:56.8]}
7. c5 {[%clk 0:02:48.3]} 7... Ne4 {[%clk 0:02:41.1]} 8. Qc2 {[%clk 0:02:42.2]}
8... Nxg5 {[%clk 0:02:30]} 9. Nxg5 {[%clk 0:02:41.5]} 9... g6 {[%clk 0:02:28.2]}
10. Bd3 {[%clk 0:02:34.8]} 10... Bg7 {[%clk 0:02:27.7]} 11. a3 {[%clk
0:02:31.8]} 11... O-O {[%clk 0:02:26.1]} 12. b4 {[%clk 0:02:29.9]} 12... Qd8
{[%clk 0:02:18.8]} 13. Nf3 {[%clk 0:02:28.6]} 13... e5 {[%clk 0:02:12]} 14.
O-O-O {[%clk 0:02:18.6]} 14... e4 {[%clk 0:02:04.6]} 15. Bxe4 {[%clk 0:02:00.3]}
15... dxe4 {[%clk 0:02:02.7]} 16. Nxe4 {[%clk 0:01:59.8]} 16... Nf6 {[%clk
0:01:57.1]} 17. Nd6 {[%clk 0:01:55.9]} 17... a5 {[%clk 0:01:47.2]} 18. Kb1
{[%clk 0:01:46]} 18... axb4 {[%clk 0:01:44.2]} 19. axb4 {[%clk 0:01:44.1]} 19...
Ne8 {[%clk 0:01:40.1]} 20. Nxc8 {[%clk 0:01:40.3]} 20... Qxc8 {[%clk 0:01:38.6]}
21. h4 {[%clk 0:01:38.8]} 21... h5 {[%clk 0:01:36.3]} 22. Rhg1 {[%clk 0:01:27]}
22... Qe6 {[%clk 0:01:34.6]} 23. Ng5 {[%clk 0:01:20.3]} 23... Qf5 {[%clk
0:01:21.9]} 24. e4 {[%clk 0:01:12.8]} 24... Qf4 {[%clk 0:01:12.9]} 25. g3 {[%clk
0:01:07.6]} 25... Qc7 {[%clk 0:01:11.9]} 26. f4 {[%clk 0:01:02.1]} 26... Nf6
{[%clk 0:01:04]} 27. Qe2 {[%clk 0:00:42.5]} 27... Ra7 {[%clk 0:00:52.9]} 28. f5
{[%clk 0:00:38]} 28... Rfa8 {[%clk 0:00:44.1]} 29. Qc4 {[%clk 0:00:20.9]} 29...
Ra1+ {[%clk 0:00:35.1]} 30. Kb2 {[%clk 0:00:19.5]} 30... Rxd1 {[%clk 0:00:31.6]}
31. Rxd1 {[%clk 0:00:18.9]} 31... Nh7 {[%clk 0:00:18.7]} 32. fxg6 {[%clk
0:00:18]} 32... Nxg5 {[%clk 0:00:16.9]} 33. hxg5 {[%clk 0:00:17.3]} 33... Rf8
{[%clk 0:00:12.6]} 34. gxf7+ {[%clk 0:00:15.2]} 34... Rxf7 {[%clk 0:00:12]} 35.
g6 {[%clk 0:00:14.8]} 35... Kf8 {[%clk 0:00:07.8]} 36. gxf7 {[%clk 0:00:13.5]}
36... Qxg3 {[%clk 0:00:07.1]} 37. Qc2 {[%clk 0:00:05.6]} 37... Qf3 {[%clk
0:00:04.1]} 38. e5 {[%clk 0:00:05.3]} 38... Qd5 {[%clk 0:00:02.7]} 39. Rf1
{[%clk 0:00:04.6]} 39... h4 {[%clk 0:00:01.8]} 40. Qh7 {[%clk 0:00:03.4]} 1-0

[Event "Betsys MČR v online bleskovém šachu 2021"]
[Site "Chess.com"]
[Date "2021.04.17"]
[Round "4"]
[White "Hollow_Head"]
[Black "Cenisuh"]
[Result "1-0"]
[WhiteElo "1075"]
[BlackElo "1601"]
[TimeControl "180+1"]
[EndTime "9:37:42 PDT"]
[Termination "Uživatel Hollow_Head zvítězil na čas"]

1. e4 {[%clk 0:03:00.9]} 1... c5 {[%clk 0:02:45.2]} 2. Nf3 {[%clk 0:02:55.3]}
2... Nc6 {[%clk 0:02:43.1]} 3. Nc3 {[%clk 0:02:54.5]} 3... d6 {[%clk 0:02:39.5]}
4. h3 {[%clk 0:02:52.9]} 4... g6 {[%clk 0:02:37.9]} 5. Be2 {[%clk 0:02:52.6]}
5... Bg7 {[%clk 0:02:38]} 6. O-O {[%clk 0:02:52.8]} 6... e6 {[%clk 0:02:37.4]}
7. d3 {[%clk 0:02:53.1]} 7... Nge7 {[%clk 0:02:37.8]} 8. Bg5 {[%clk 0:02:52.8]}
8... O-O {[%clk 0:02:37.4]} 9. Bxe7 {[%clk 0:02:51.7]} 9... Qxe7 {[%clk
0:02:35.9]} 10. d4 {[%clk 0:02:49.8]} 10... b6 {[%clk 0:02:29.2]} 11. dxc5
{[%clk 0:02:49.9]} 11... dxc5 {[%clk 0:02:28.3]} 12. Bb5 {[%clk 0:02:47.2]}
12... Rd8 {[%clk 0:02:24.9]} 13. Nd2 {[%clk 0:02:43.6]} 13... Nd4 {[%clk
0:02:23.4]} 14. Bd3 {[%clk 0:02:38.3]} 14... a6 {[%clk 0:02:21.5]} 15. Na4
{[%clk 0:02:35.6]} 15... Qc7 {[%clk 0:02:16.8]} 16. c3 {[%clk 0:02:30]} 16...
Nc6 {[%clk 0:02:16.7]} 17. Nc4 {[%clk 0:02:25.8]} 17... Rb8 {[%clk 0:02:04.9]}
18. Ncxb6 {[%clk 0:02:19]} 18... Rxb6 {[%clk 0:02:04.4]} 19. Nxb6 {[%clk
0:02:19.5]} 19... Qxb6 {[%clk 0:02:04.8]} 20. Rb1 {[%clk 0:02:13.9]} 20... Ne5
{[%clk 0:01:59.9]} 21. b4 {[%clk 0:02:10.1]} 21... Rxd3 {[%clk 0:01:57.7]} 22.
Qc1 {[%clk 0:02:08.5]} 22... c4 {[%clk 0:01:55.5]} 23. a4 {[%clk 0:02:04.8]}
23... Bb7 {[%clk 0:01:54.2]} 24. b5 {[%clk 0:02:04.9]} 24... Bxe4 {[%clk
0:01:50.5]} 25. bxa6 {[%clk 0:02:03.1]} 25... Qxa6 {[%clk 0:01:50.8]} 26. Rb8+
{[%clk 0:02:01.8]} 26... Bf8 {[%clk 0:01:50.7]} 27. Qh6 {[%clk 0:01:59.7]} 27...
Qd6 {[%clk 0:01:50.3]} 28. a5 {[%clk 0:01:45.2]} 28... Nd7 {[%clk 0:01:45.1]}
29. Rd8 {[%clk 0:01:44.1]} 29... Qe7 {[%clk 0:01:44.9]} 30. Rc8 {[%clk
0:01:41.6]} 30... Rxc3 {[%clk 0:01:20.7]} 31. a6 {[%clk 0:01:40.7]} 31... Ra3
{[%clk 0:01:20.8]} 32. Ra8 {[%clk 0:01:31.2]} 32... Qf6 {[%clk 0:01:16.6]} 33.
Rc8 {[%clk 0:01:23.7]} 33... Qg7 {[%clk 0:01:12.3]} 34. Qd2 {[%clk 0:01:19.2]}
34... Nb6 {[%clk 0:00:55.5]} 35. Rd8 {[%clk 0:00:49]} 35... Rxa6 {[%clk
0:00:49.9]} 36. Re1 {[%clk 0:00:46.6]} 36... Bd5 {[%clk 0:00:49.2]} 37. Qb4
{[%clk 0:00:42]} 37... Ra8 {[%clk 0:00:31.1]} 38. Qxb6 {[%clk 0:00:37.5]} 38...
Rxd8 {[%clk 0:00:31.1]} 39. Qxd8 {[%clk 0:00:38]} 39... Qc3 {[%clk 0:00:29.2]}
40. Rf1 {[%clk 0:00:37.1]} 40... Qd3 {[%clk 0:00:22.9]} 41. f3 {[%clk
0:00:27.2]} 41... Qe3+ {[%clk 0:00:21.1]} 42. Kh1 {[%clk 0:00:26.6]} 42... c3
{[%clk 0:00:21.4]} 43. Qc8 {[%clk 0:00:22.1]} 43... Qd2 {[%clk 0:00:13.4]} 44.
Rg1 {[%clk 0:00:20.6]} 44... Kg7 {[%clk 0:00:12.6]} 45. Qc7 {[%clk 0:00:17.8]}
45... c2 {[%clk 0:00:08.9]} 46. Rf1 {[%clk 0:00:11.8]} 1-0

[Event "Betsys MČR v online bleskovém šachu 2021"]
[Site "Chess.com"]
[Date "2021.04.17"]
[Round "4"]
[White "Krejcak"]
[Black "sodikus"]
[Result "0-1"]
[WhiteElo "2000"]
[BlackElo "2319"]
[TimeControl "180+1"]
[EndTime "9:37:44 PDT"]
[Termination "Uživatel sodikus zvítězil po vzdání soupeře"]

1. e4 {[%clk 0:03:00.9]} 1... e5 {[%clk 0:02:49.2]} 2. Nf3 {[%clk 0:02:59.4]}
2... Nc6 {[%clk 0:02:49.4]} 3. Bc4 {[%clk 0:02:56.2]} 3... Nf6 {[%clk
0:02:48.8]} 4. d3 {[%clk 0:02:54.1]} 4... Bc5 {[%clk 0:02:47.9]} 5. c3 {[%clk
0:02:53.9]} 5... a6 {[%clk 0:02:47.6]} 6. Bg5 {[%clk 0:02:51.7]} 6... h6 {[%clk
0:02:46.4]} 7. Bh4 {[%clk 0:02:50.1]} 7... d6 {[%clk 0:02:44.4]} 8. Nbd2 {[%clk
0:02:49.6]} 8... Ba7 {[%clk 0:02:43.4]} 9. Qe2 {[%clk 0:02:47.1]} 9... Qe7
{[%clk 0:02:33.5]} 10. O-O-O {[%clk 0:02:42.3]} 10... Be6 {[%clk 0:02:28]} 11.
Kb1 {[%clk 0:02:37.6]} 11... O-O-O {[%clk 0:02:27.5]} 12. Bd5 {[%clk 0:02:23.7]}
12... Bxd5 {[%clk 0:02:15.7]} 13. exd5 {[%clk 0:02:22.9]} 13... Nb8 {[%clk
0:02:13.9]} 14. Ne4 {[%clk 0:02:20.9]} 14... Nbd7 {[%clk 0:02:05.6]} 15. c4
{[%clk 0:02:04.8]} 15... g5 {[%clk 0:01:56.1]} 16. Bg3 {[%clk 0:02:01.3]} 16...
Nh7 {[%clk 0:01:41.1]} 17. Nc3 {[%clk 0:01:47.3]} 17... f5 {[%clk 0:01:39.5]}
18. h4 {[%clk 0:01:44.2]} 18... g4 {[%clk 0:01:29.6]} 19. Nd2 {[%clk 0:01:41.5]}
19... Nhf6 {[%clk 0:01:19.5]} 20. f4 {[%clk 0:01:33.9]} 20... gxf3 {[%clk
0:01:13.3]} 21. Nxf3 {[%clk 0:01:31.1]} 21... Rhg8 {[%clk 0:01:11.3]} 22. Be1
{[%clk 0:01:20.2]} 22... e4 {[%clk 0:01:03.7]} 23. dxe4 {[%clk 0:01:19.5]} 23...
Nxe4 {[%clk 0:00:58.1]} 24. Nxe4 {[%clk 0:01:18.3]} 24... Qxe4+ {[%clk
0:00:54.4]} 25. Qxe4 {[%clk 0:01:16.4]} 25... fxe4 {[%clk 0:00:55.3]} 26. Nd2
{[%clk 0:01:11.5]} 26... e3 {[%clk 0:00:51.2]} 27. Ne4 {[%clk 0:00:59.2]} 27...
Rxg2 {[%clk 0:00:50.7]} 28. Bc3 {[%clk 0:00:53.5]} 28... Re8 {[%clk 0:00:49.1]}
29. Nf6 {[%clk 0:00:46.4]} 29... Nxf6 {[%clk 0:00:48.7]} 30. Bxf6 {[%clk
0:00:46.4]} 30... e2 {[%clk 0:00:49]} 31. Rde1 {[%clk 0:00:46.4]} 31... Bf2
{[%clk 0:00:48.4]} 32. Bc3 {[%clk 0:00:36.8]} 32... Bxe1 {[%clk 0:00:47.2]} 33.
Rxe1 {[%clk 0:00:36.7]} 33... h5 {[%clk 0:00:44.3]} 34. Kc2 {[%clk 0:00:36.1]}
34... Rf8 {[%clk 0:00:41]} 35. Kd2 {[%clk 0:00:33]} 35... Rf4 {[%clk 0:00:37.5]}
36. Rxe2 {[%clk 0:00:26.1]} 36... Rxe2+ {[%clk 0:00:36.1]} 37. Kxe2 {[%clk
0:00:26.3]} 37... Rxh4 {[%clk 0:00:36.2]} 38. b3 {[%clk 0:00:24]} 38... Rh2+
{[%clk 0:00:36.2]} 39. Kd3 {[%clk 0:00:22.4]} 39... Rxa2 {[%clk 0:00:37.1]} 40.
Bf6 {[%clk 0:00:21.1]} 40... Rh2 {[%clk 0:00:33.8]} 41. b4 {[%clk 0:00:20.3]}
41... b6 {[%clk 0:00:32.8]} 42. c5 {[%clk 0:00:17.1]} 42... bxc5 {[%clk
0:00:28.8]} 43. bxc5 {[%clk 0:00:17.2]} 43... h4 {[%clk 0:00:24.3]} 44. cxd6
{[%clk 0:00:16.4]} 44... cxd6 {[%clk 0:00:24]} 45. Ke3 {[%clk 0:00:16.6]} 45...
Rh1 {[%clk 0:00:22.1]} 46. Kf3 {[%clk 0:00:16.4]} 46... h3 {[%clk 0:00:22.1]}
47. Bg5 {[%clk 0:00:13.7]} 47... Kd7 {[%clk 0:00:20.4]} 48. Bf4 {[%clk
0:00:12.6]} 48... a5 {[%clk 0:00:20]} 49. Bd2 {[%clk 0:00:11.8]} 49... a4 {[%clk
0:00:19.9]} 0-1

[Event "Betsys MČR v online bleskovém šachu 2021"]
[Site "Chess.com"]
[Date "2021.04.17"]
[Round "4"]
[White "marfuss"]
[Black "ReitteN"]
[Result "1/2-1/2"]
[WhiteElo "2068"]
[BlackElo "1775"]
[TimeControl "180+1"]
[EndTime "9:37:44 PDT"]
[Termination "Remíza opakováním pozice"]

1. d4 {[%clk 0:03:00.9]} 1... c6 {[%clk 0:03:00.2]} 2. Bf4 {[%clk 0:03:00.5]}
2... d5 {[%clk 0:03:00.5]} 3. e3 {[%clk 0:03:00.7]} 3... Bf5 {[%clk 0:03:01.1]}
4. Nf3 {[%clk 0:03:01]} 4... e6 {[%clk 0:03:01.6]} 5. Bd3 {[%clk 0:02:59.2]}
5... Bxd3 {[%clk 0:03:01.6]} 6. Qxd3 {[%clk 0:02:59.3]} 6... Nf6 {[%clk
0:03:02.3]} 7. c4 {[%clk 0:02:58.5]} 7... Be7 {[%clk 0:02:56.6]} 8. Nc3 {[%clk
0:02:57.8]} 8... h6 {[%clk 0:02:52.3]} 9. Rc1 {[%clk 0:02:53]} 9... a6 {[%clk
0:02:50.3]} 10. Na4 {[%clk 0:02:42.4]} 10... Qa5+ {[%clk 0:02:42.4]} 11. Nc3
{[%clk 0:02:40.1]} 11... Ne4 {[%clk 0:02:35.6]} 12. a3 {[%clk 0:02:25.1]} 12...
Nxc3 {[%clk 0:02:23.9]} 13. Qxc3 {[%clk 0:02:14.8]} 13... Qxc3+ {[%clk
0:02:22.4]} 14. Rxc3 {[%clk 0:02:13.4]} 14... Nd7 {[%clk 0:02:18.8]} 15. Ke2
{[%clk 0:02:04.5]} 15... O-O {[%clk 0:02:16.9]} 16. Rhc1 {[%clk 0:02:02]} 16...
Rac8 {[%clk 0:02:15.8]} 17. cxd5 {[%clk 0:01:56.8]} 17... exd5 {[%clk
0:02:14.9]} 18. Ne5 {[%clk 0:01:54.6]} 18... Nxe5 {[%clk 0:02:13.9]} 19. Bxe5
{[%clk 0:01:55.5]} 19... Rfd8 {[%clk 0:02:10.2]} 20. Rb3 {[%clk 0:01:55.3]}
20... Rd7 {[%clk 0:02:05.9]} 21. Rcc3 {[%clk 0:01:38.3]} 21... f6 {[%clk
0:01:58.7]} 22. Bg3 {[%clk 0:01:37.6]} 22... Kf7 {[%clk 0:01:47]} 23. f3 {[%clk
0:01:34.8]} 23... Ke6 {[%clk 0:01:43.9]} 24. Rd3 {[%clk 0:01:30.9]} 24... Bd6
{[%clk 0:01:43.5]} 25. Bxd6 {[%clk 0:01:26.7]} 25... Kxd6 {[%clk 0:01:44.4]} 26.
Rb6 {[%clk 0:01:25.9]} 26... Re8 {[%clk 0:01:40.9]} 27. Rdb3 {[%clk 0:01:25]}
27... Ree7 {[%clk 0:01:41.2]} 28. Kd3 {[%clk 0:01:24.4]} 28... f5 {[%clk
0:01:39.3]} 29. h3 {[%clk 0:01:12.5]} 29... Rc7 {[%clk 0:01:30.4]} 30. g4 {[%clk
0:01:09.3]} 30... fxg4 {[%clk 0:01:30.1]} 31. hxg4 {[%clk 0:01:10.2]} 31... Rf7
{[%clk 0:01:30.4]} 32. Ke2 {[%clk 0:01:08.5]} 32... Rce7 {[%clk 0:01:30.2]} 33.
Kf2 {[%clk 0:01:06.3]} 33... g6 {[%clk 0:01:26.6]} 34. Rd3 {[%clk 0:00:57.9]}
34... Kc7 {[%clk 0:01:22.1]} 35. Rbb3 {[%clk 0:00:57.1]} 35... b5 {[%clk
0:01:21.4]} 36. Rbc3 {[%clk 0:00:54.1]} 36... Kd6 {[%clk 0:01:16.1]} 37. Rc5
{[%clk 0:00:47.9]} 37... Rf6 {[%clk 0:01:08.6]} 38. Rdc3 {[%clk 0:00:47.4]}
38... Rc7 {[%clk 0:01:08.7]} 39. Ke2 {[%clk 0:00:40.5]} 39... Kd7 {[%clk
0:01:06.8]} 40. a4 {[%clk 0:00:34.1]} 40... Rc8 {[%clk 0:01:01.1]} 41. e4 {[%clk
0:00:30.3]} 41... Re8 {[%clk 0:00:58.9]} 42. e5 {[%clk 0:00:23.8]} 42... Rf4
{[%clk 0:00:52.4]} 43. Rxc6 {[%clk 0:00:21.6]} 43... Rxd4 {[%clk 0:00:52.6]} 44.
axb5 {[%clk 0:00:17.1]} 44... axb5 {[%clk 0:00:52.3]} 45. Rc7+ {[%clk
0:00:15.9]} 45... Ke6 {[%clk 0:00:47]} 46. R3c6+ {[%clk 0:00:14.6]} 46... Kxe5
{[%clk 0:00:45.8]} 47. Rxg6 {[%clk 0:00:14.5]} 47... Kf4+ {[%clk 0:00:45.3]} 48.
Kf2 {[%clk 0:00:11.5]} 48... Rd2+ {[%clk 0:00:45.5]} 49. Kf1 {[%clk 0:00:09.7]}
49... Rd1+ {[%clk 0:00:45.1]} 50. Kf2 {[%clk 0:00:09.5]} 50... Rd2+ {[%clk
0:00:44.6]} 51. Kf1 {[%clk 0:00:09.7]} 51... Rd1+ {[%clk 0:00:20]} 52. Kf2
{[%clk 0:00:09.6]} 52... Rd2+ {[%clk 0:00:13.4]} 1/2-1/2

[Event "Betsys MČR v online bleskovém šachu 2021"]
[Site "Chess.com"]
[Date "2021.04.17"]
[Round "4"]
[White "tudlenudle"]
[Black "HonzaVykouk"]
[Result "1/2-1/2"]
[WhiteElo "1929"]
[BlackElo "2686"]
[TimeControl "180+1"]
[EndTime "9:37:45 PDT"]
[Termination "Remíza opakováním pozice"]

1. e4 {[%clk 0:03:00.9]} 1... c5 {[%clk 0:02:58.6]} 2. Nf3 {[%clk 0:02:58.7]}
2... d6 {[%clk 0:02:58.6]} 3. d4 {[%clk 0:02:58.4]} 3... cxd4 {[%clk 0:02:59.3]}
4. Nxd4 {[%clk 0:02:59.2]} 4... Nf6 {[%clk 0:02:59.7]} 5. Nc3 {[%clk 0:02:58.4]}
5... a6 {[%clk 0:03:00.2]} 6. a3 {[%clk 0:02:59]} 6... e6 {[%clk 0:02:57.3]} 7.
g3 {[%clk 0:02:58.1]} 7... b5 {[%clk 0:02:56.3]} 8. Bg2 {[%clk 0:02:58.1]} 8...
Bb7 {[%clk 0:02:56.9]} 9. O-O {[%clk 0:02:58.3]} 9... Qc7 {[%clk 0:02:54.4]} 10.
g4 {[%clk 0:02:50.9]} 10... Nc6 {[%clk 0:02:49.3]} 11. g5 {[%clk 0:02:42]} 11...
Nd7 {[%clk 0:02:49.1]} 12. Nb3 {[%clk 0:02:39.5]} 12... Be7 {[%clk 0:02:48.3]}
13. f4 {[%clk 0:02:40]} 13... O-O {[%clk 0:02:48.1]} 14. Rf3 {[%clk 0:02:37.4]}
14... Rfe8 {[%clk 0:02:46.5]} 15. Rh3 {[%clk 0:02:37.6]} 15... g6 {[%clk
0:02:46.7]} 16. Qg4 {[%clk 0:02:25.4]} 16... Rad8 {[%clk 0:02:44.5]} 17. Qh4
{[%clk 0:02:20.2]} 17... h5 {[%clk 0:02:44.1]} 18. Bf3 {[%clk 0:02:20.3]} 18...
Kg7 {[%clk 0:02:35.9]} 19. f5 {[%clk 0:02:03.6]} 19... Nce5 {[%clk 0:02:17.4]}
20. f6+ {[%clk 0:02:00.7]} 20... Nxf6 {[%clk 0:02:16.7]} 21. gxf6+ {[%clk
0:02:01.6]} 21... Bxf6 {[%clk 0:02:17.3]} 22. Qf2 {[%clk 0:01:50]} 22... d5
{[%clk 0:02:06]} 23. Bf4 {[%clk 0:01:37.3]} 23... dxe4 {[%clk 0:01:35.7]} 24.
Bxe4 {[%clk 0:01:22]} 24... Qe7 {[%clk 0:01:14.4]} 25. Rf1 {[%clk 0:01:19]}
25... Ng4 {[%clk 0:01:12.1]} 26. Qf3 {[%clk 0:01:10.8]} 26... Bxc3 {[%clk
0:00:32.7]} 27. bxc3 {[%clk 0:01:06.5]} 27... Bxe4 {[%clk 0:00:31.1]} 28. Qxe4
{[%clk 0:01:03.7]} 28... e5 {[%clk 0:00:32]} 29. Be3 {[%clk 0:00:50.3]} 29... f5
{[%clk 0:00:31.8]} 30. Qf3 {[%clk 0:00:38.4]} 30... f4 {[%clk 0:00:31.6]} 31.
Bc5 {[%clk 0:00:37.3]} 31... Qg5 {[%clk 0:00:31.8]} 32. Kh1 {[%clk 0:00:33.6]}
32... Qf5 {[%clk 0:00:18.4]} 33. Rh4 {[%clk 0:00:30]} 33... Qxc2 {[%clk
0:00:17.5]} 34. Nc1 {[%clk 0:00:24.2]} 34... Qf5 {[%clk 0:00:16.6]} 35. Ne2
{[%clk 0:00:17.4]} 35... e4 {[%clk 0:00:17]} 36. Qxf4 {[%clk 0:00:16.9]} 36...
Qxc5 {[%clk 0:00:17.1]} 37. Qf7+ {[%clk 0:00:12.4]} 37... Kh6 {[%clk 0:00:17.4]}
38. Nf4 {[%clk 0:00:09.3]} 38... Qf5 {[%clk 0:00:14.8]} 39. Rxh5+ {[%clk
0:00:05.2]} 39... Qxh5 {[%clk 0:00:11.5]} 40. Nxh5 {[%clk 0:00:04.9]} 40... gxh5
{[%clk 0:00:08.8]} 41. Qf4+ {[%clk 0:00:02.8]} 41... Kg6 {[%clk 0:00:08]} 42.
Qf5+ {[%clk 0:00:02.8]} 42... Kh6 {[%clk 0:00:08.2]} 43. Qf4+ {[%clk 0:00:03.1]}
43... Kg6 {[%clk 0:00:08.7]} 44. Qf5+ {[%clk 0:00:03.3]} 44... Kh6 {[%clk
0:00:08.5]} 45. Qf4+ {[%clk 0:00:03]} 1/2-1/2

[Event "Betsys MČR v online bleskovém šachu 2021"]
[Site "Chess.com"]
[Date "2021.04.17"]
[Round "4"]
[White "Federer302"]
[Black "KarelZalesky"]
[Result "0-1"]
[WhiteElo "1588"]
[BlackElo "1602"]
[TimeControl "180+1"]
[EndTime "9:37:46 PDT"]
[Termination "Uživatel KarelZalesky zvítězil na čas"]

1. d4 {[%clk 0:02:59.5]} 1... d5 {[%clk 0:02:58.7]} 2. c4 {[%clk 0:02:58.7]}
2... e6 {[%clk 0:02:58.1]} 3. Nc3 {[%clk 0:02:58.1]} 3... Nf6 {[%clk 0:02:57.4]}
4. cxd5 {[%clk 0:02:57.6]} 4... exd5 {[%clk 0:02:56.9]} 5. Bg5 {[%clk
0:02:53.4]} 5... c6 {[%clk 0:02:55.8]} 6. Nf3 {[%clk 0:02:52.5]} 6... h6 {[%clk
0:02:54]} 7. Bh4 {[%clk 0:02:51.4]} 7... Bf5 {[%clk 0:02:46.9]} 8. e3 {[%clk
0:02:47.2]} 8... Nbd7 {[%clk 0:02:44]} 9. Bd3 {[%clk 0:02:42.8]} 9... Bxd3
{[%clk 0:02:39]} 10. Qxd3 {[%clk 0:02:42.2]} 10... Be7 {[%clk 0:02:30.5]} 11. h3
{[%clk 0:02:37.8]} 11... Nh7 {[%clk 0:02:11.4]} 12. Bg3 {[%clk 0:02:35]} 12...
Ng5 {[%clk 0:02:08.8]} 13. Nxg5 {[%clk 0:02:30]} 13... hxg5 {[%clk 0:02:04.4]}
14. O-O-O {[%clk 0:02:08.5]} 14... g6 {[%clk 0:01:26.7]} 15. e4 {[%clk
0:01:42.3]} 15... dxe4 {[%clk 0:01:25.6]} 16. Nxe4 {[%clk 0:01:39.1]} 16... Nb6
{[%clk 0:01:17.2]} 17. Rhe1 {[%clk 0:01:32.2]} 17... Kf8 {[%clk 0:01:16.3]} 18.
Be5 {[%clk 0:00:55.2]} 18... Rh5 {[%clk 0:01:08.8]} 19. Re3 {[%clk 0:00:42.2]}
19... Nd5 {[%clk 0:01:08.4]} 20. Rf3 {[%clk 0:00:38]} 20... Qa5 {[%clk
0:00:53.8]} 21. Kb1 {[%clk 0:00:31.8]} 21... Nb4 {[%clk 0:00:50.7]} 22. Qb3
{[%clk 0:00:31.2]} 22... Nd5 {[%clk 0:00:39.4]} 23. Qxb7 {[%clk 0:00:27.8]}
23... Rd8 {[%clk 0:00:25]} 24. Bd6 {[%clk 0:00:24.1]} 24... Re8 {[%clk 0:00:18]}
25. g4 {[%clk 0:00:18.2]} 25... Qb6 {[%clk 0:00:16.4]} 26. Qxb6 {[%clk
0:00:17.5]} 26... axb6 {[%clk 0:00:16.4]} 27. Bxe7+ {[%clk 0:00:17.7]} 27...
Rxe7 {[%clk 0:00:16.3]} 28. gxh5 {[%clk 0:00:18.1]} 28... gxh5 {[%clk
0:00:13.3]} 29. Nxg5 {[%clk 0:00:17.1]} 29... Kg7 {[%clk 0:00:10.8]} 30. h4
{[%clk 0:00:15.4]} 30... f6 {[%clk 0:00:07.6]} 31. Nh3 {[%clk 0:00:14.1]} 31...
Re4 {[%clk 0:00:06]} 32. Rg1+ {[%clk 0:00:13.7]} 32... Kf7 {[%clk 0:00:05.3]}
33. Rfg3 {[%clk 0:00:12.9]} 33... Re2 {[%clk 0:00:03.8]} 34. Rg7+ {[%clk
0:00:12]} 34... Ke6 {[%clk 0:00:03.7]} 35. Nf4+ {[%clk 0:00:12.1]} 35... Nxf4
{[%clk 0:00:03.2]} 36. Rh7 {[%clk 0:00:07.9]} 36... Rxf2 {[%clk 0:00:02.9]} 37.
Rgg7 {[%clk 0:00:06.2]} 37... Nd3 {[%clk 0:00:01.8]} 38. Re7+ {[%clk 0:00:04.7]}
38... Kd5 {[%clk 0:00:02]} 39. Rxh5+ {[%clk 0:00:03.9]} 39... Kc4 {[%clk
0:00:01.9]} 40. b3+ {[%clk 0:00:04.2]} 40... Kc3 {[%clk 0:00:02]} 41. a4 {[%clk
0:00:01.8]} 41... Rf1+ {[%clk 0:00:01.9]} 42. Ka2 {[%clk 0:00:01.9]} 42... Rf2+
{[%clk 0:00:02.1]} 43. Ka3 {[%clk 0:00:01.7]} 43... Nc1 {[%clk 0:00:01.5]} 0-1

[Event "Betsys MČR v online bleskovém šachu 2021"]
[Site "Chess.com"]
[Date "2021.04.17"]
[Round "4"]
[White "MBorkovec"]
[Black "SayQueen"]
[Result "1-0"]
[WhiteElo "2286"]
[BlackElo "1993"]
[TimeControl "180+1"]
[EndTime "9:37:48 PDT"]
[Termination "Uživatel MBorkovec zvítězil na čas"]

1. e4 {[%clk 0:03:00.9]} 1... e5 {[%clk 0:02:58.9]} 2. Nf3 {[%clk 0:03:00.9]}
2... Nc6 {[%clk 0:02:58.3]} 3. d4 {[%clk 0:03:00.9]} 3... exd4 {[%clk
0:02:56.7]} 4. Bc4 {[%clk 0:03:01.5]} 4... Nf6 {[%clk 0:02:45.6]} 5. e5 {[%clk
0:03:00.9]} 5... d5 {[%clk 0:02:43.5]} 6. Bb5 {[%clk 0:03:01]} 6... Ne4 {[%clk
0:02:43.1]} 7. Nxd4 {[%clk 0:03:01.5]} 7... Bc5 {[%clk 0:02:40.9]} 8. Be3 {[%clk
0:03:01.5]} 8... O-O {[%clk 0:02:30.6]} 9. Nxc6 {[%clk 0:03:01.5]} 9... bxc6
{[%clk 0:02:22.6]} 10. Bxc5 {[%clk 0:03:00.8]} 10... Nxc5 {[%clk 0:02:13]} 11.
Bxc6 {[%clk 0:03:00.4]} 11... Ba6 {[%clk 0:02:09]} 12. Nc3 {[%clk 0:02:55.7]}
12... Rb8 {[%clk 0:02:03.9]} 13. Qxd5 {[%clk 0:02:26.1]} 13... Qe7 {[%clk
0:01:55.2]} 14. O-O-O {[%clk 0:02:21.8]} 14... Rfd8 {[%clk 0:01:41.3]} 15. Qf3
{[%clk 0:02:21.1]} 15... Bc4 {[%clk 0:01:37.4]} 16. Bd5 {[%clk 0:02:02.8]} 16...
Bxd5 {[%clk 0:01:27.6]} 17. Rxd5 {[%clk 0:02:01.7]} 17... c6 {[%clk 0:01:10.1]}
18. Rxd8+ {[%clk 0:01:58.1]} 18... Rxd8 {[%clk 0:01:10.1]} 19. Qxc6 {[%clk
0:01:47.3]} 19... Qxe5 {[%clk 0:01:07.9]} 20. Rd1 {[%clk 0:01:23.9]} 20... Rxd1+
{[%clk 0:01:05.9]} 21. Nxd1 {[%clk 0:01:23.1]} 21... h6 {[%clk 0:00:49.7]} 22.
Ne3 {[%clk 0:01:16.4]} 22... Ne4 {[%clk 0:00:45.2]} 23. Qc8+ {[%clk 0:01:10.8]}
23... Kh7 {[%clk 0:00:42.7]} 24. Qf5+ {[%clk 0:01:10.6]} 24... Qxf5 {[%clk
0:00:41.9]} 25. Nxf5 {[%clk 0:01:11.1]} 25... Nxf2 {[%clk 0:00:41.8]} 26. c4
{[%clk 0:01:09.1]} 26... Kg6 {[%clk 0:00:41.2]} 27. Nd6 {[%clk 0:01:07.3]} 27...
Kf6 {[%clk 0:00:40.2]} 28. Kd2 {[%clk 0:01:01.2]} 28... Ke6 {[%clk 0:00:36.3]}
29. Nb5 {[%clk 0:00:59.7]} 29... a6 {[%clk 0:00:24.6]} 30. Nc7+ {[%clk
0:00:59.7]} 30... Ke5 {[%clk 0:00:24.4]} 31. Nxa6 {[%clk 0:01:00.2]} 31... Kd4
{[%clk 0:00:23.8]} 32. b3 {[%clk 0:00:59.3]} 32... Ne4+ {[%clk 0:00:23.2]} 33.
Kc2 {[%clk 0:00:57.2]} 33... Nc3 {[%clk 0:00:20]} 34. Nb4 {[%clk 0:00:56]} 34...
Ne2 {[%clk 0:00:16.7]} 35. a4 {[%clk 0:00:48.5]} 35... Nf4 {[%clk 0:00:15.6]}
36. g3 {[%clk 0:00:45.9]} 36... Ne6 {[%clk 0:00:13.5]} 37. Nc6+ {[%clk
0:00:42.2]} 37... Kc5 {[%clk 0:00:11.8]} 38. Ne5 {[%clk 0:00:42]} 38... f6
{[%clk 0:00:10.2]} 39. Nd3+ {[%clk 0:00:41.6]} 39... Kd4 {[%clk 0:00:08.5]} 40.
a5 {[%clk 0:00:38.9]} 40... Nc7 {[%clk 0:00:08.4]} 41. Nf4 {[%clk 0:00:33]}
41... f5 {[%clk 0:00:07.3]} 42. Kd2 {[%clk 0:00:20.5]} 42... g5 {[%clk
0:00:06.4]} 43. Ne2+ {[%clk 0:00:20.7]} 43... Kc5 {[%clk 0:00:05]} 44. Kc3
{[%clk 0:00:20.8]} 44... Ne6 {[%clk 0:00:03.3]} 45. b4+ {[%clk 0:00:20.4]} 45...
Kd6 {[%clk 0:00:02.3]} 46. Nd4 {[%clk 0:00:18.4]} 46... f4 {[%clk 0:00:01.2]}
47. Nxe6 {[%clk 0:00:12.4]} 47... f3 {[%clk 0:00:01.2]} 48. Nc5 {[%clk
0:00:09.8]} 1-0